[Event "Titled Tuesday Blitz December 20 Early 2022"]
[White "Khudoly, Kostya"]
[Black "Willi_Skibbe"]
[WhiteFideId "14111454"]
[WhiteElo "2262"]
[BlackElo "2346"]
[Result "1-0"]
[Round "03"]
[TimeControl "180+2"]
[Date "2022.12.20"]
[WhiteClock "0:00:18"]
[BlackClock "0:01:44"]

1. e4 {[%clk 0:02:57]}  e5 {[%clk 0:02:58]} 2. Nf3 {[%clk 0:02:56]}  Nc6 {[%clk 0:02:58]} 3. Bc4 {[%clk 0:02:57]}  Bc5 {[%clk 0:02:57]} 4. c3 {[%clk 0:02:57]}  Nf6 {[%clk 0:02:57]} 5. d4 {[%clk 0:02:57]}  exd4 {[%clk 0:02:58]} 6. b4 {[%clk 0:02:57]}  Bb6 {[%clk 0:02:56]} 7. e5 {[%clk 0:02:57]}  d5 {[%clk 0:02:54]} 8. exf6 {[%clk 0:02:56]}  dxc4 {[%clk 0:02:54]} 9. Qe2+ {[%clk 0:02:55]}  Be6 {[%clk 0:02:52]} 10. b5 {[%clk 0:02:56]}  Na5 {[%clk 0:02:50]} 11. fxg7 {[%clk 0:02:54]}  Rg8 {[%clk 0:02:50]} 12. Nxd4 {[%clk 0:02:55]}  Bxd4 {[%clk 0:02:49]} 13. cxd4 {[%clk 0:02:56]}  Qxd4 {[%clk 0:02:50]} 14. Bb2 {[%clk 0:02:56]}  Qd5 {[%clk 0:02:45]} 15. O-O {[%clk 0:02:27]}  Qxb5 {[%clk 0:02:35]} 16. Nc3 {[%clk 0:02:23]}  Qc6 {[%clk 0:02:28]} 17. Ne4 {[%clk 0:02:19]}  O-O-O {[%clk 0:02:28]} 18. Bf6 {[%clk 0:02:16]}  Rde8 {[%clk 0:02:23]} 19. Qf3 {[%clk 0:02:09]}  Bd5 {[%clk 0:02:23]} 20. Qg4+ {[%clk 0:02:08]}  Qd7 {[%clk 0:02:18]} 21. Qxd7+ {[%clk 0:02:00]}  Kxd7 {[%clk 0:02:19]} 22. Ng3 {[%clk 0:01:41]}  b6 {[%clk 0:02:01]} 23. Rfd1 {[%clk 0:01:33]}  c6 {[%clk 0:02:01]} 24. Re1 {[%clk 0:01:22]}  Re6 {[%clk 0:01:59]} 25. Nh5 {[%clk 0:01:17]}  Nb7 {[%clk 0:01:57]} 26. g4 {[%clk 0:01:09]}  Bf3 {[%clk 0:01:51]} 27. h3 {[%clk 0:01:04]}  Nd6 {[%clk 0:01:51]} 28. Rxe6 {[%clk 0:00:26]}  fxe6 {[%clk 0:01:48]} 29. Re1 {[%clk 0:00:25]}  Be4 {[%clk 0:01:45]} 30. Ba1 {[%clk 0:00:19]}  Ne8 {[%clk 0:01:45]} 31. Rxe4 {[%clk 0:00:18]}  b5 {[%clk 0:01:43]} 32. f4 {[%clk 0:00:19]}  Kd6 {[%clk 0:01:43]} 33. f5 {[%clk 0:00:19]}  exf5 {[%clk 0:01:42]} 34. gxf5 {[%clk 0:00:20]}  Kd5 {[%clk 0:01:43]} 35. Rxe8 {[%clk 0:00:18]}  Rxe8 {[%clk 0:01:44]} 36. Nf6+ {[%clk 0:00:18]} 1-0


[Site "https://www.chess.com"]

[Event "Titled Tuesday Blitz December 20 Early 2022"]
[White "Kopylov_Alex"]
[Black "GiorgianBarbosa"]
[WhiteElo "2790"]
[BlackElo "2484"]
[Result "1-0"]
[Round "03"]
[TimeControl "180+2"]
[Date "2022.12.20"]
[WhiteClock "0:01:17"]
[BlackClock "0:00:04"]

1. e4 {[%clk 0:03:00]}  c5 {[%clk 0:02:59]} 2. Nf3 {[%clk 0:03:00]}  g6 {[%clk 0:02:59]} 3. h4 {[%clk 0:02:59]}  Bg7 {[%clk 0:02:59]} 4. h5 {[%clk 0:02:59]}  Nc6 {[%clk 0:03:00]} 5. d3 {[%clk 0:02:59]}  d6 {[%clk 0:02:58]} 6. h6 {[%clk 0:02:59]}  Bf6 {[%clk 0:02:57]} 7. Nc3 {[%clk 0:02:59]}  e6 {[%clk 0:02:57]} 8. g3 {[%clk 0:02:57]}  Nge7 {[%clk 0:02:56]} 9. Bg2 {[%clk 0:02:57]}  O-O {[%clk 0:02:55]} 10. Bg5 {[%clk 0:02:55]}  Bxg5 {[%clk 0:02:49]} 11. Nxg5 {[%clk 0:02:55]}  d5 {[%clk 0:02:48]} 12. O-O {[%clk 0:02:53]}  d4 {[%clk 0:02:44]} 13. Ne2 {[%clk 0:02:53]}  e5 {[%clk 0:02:38]} 14. f4 {[%clk 0:02:52]}  f6 {[%clk 0:02:38]} 15. Nf3 {[%clk 0:02:51]}  Bg4 {[%clk 0:02:38]} 16. c3 {[%clk 0:02:50]}  Kh8 {[%clk 0:02:31]} 17. cxd4 {[%clk 0:02:49]}  Bxf3 {[%clk 0:02:30]} 18. Bxf3 {[%clk 0:02:46]}  Nxd4 {[%clk 0:02:31]} 19. Nc3 {[%clk 0:02:36]}  Qd6 {[%clk 0:02:15]} 20. Qd2 {[%clk 0:02:35]}  b5 {[%clk 0:02:09]} 21. Bg2 {[%clk 0:02:33]}  b4 {[%clk 0:02:08]} 22. Nd1 {[%clk 0:02:30]}  Nec6 {[%clk 0:01:58]} 23. Ne3 {[%clk 0:02:28]}  Rad8 {[%clk 0:01:49]} 24. Rf2 {[%clk 0:02:28]}  Ne6 {[%clk 0:01:18]} 25. Raf1 {[%clk 0:02:27]}  exf4 {[%clk 0:01:14]} 26. gxf4 {[%clk 0:02:28]}  Qxd3 {[%clk 0:01:13]} 27. Qc1 {[%clk 0:02:12]}  Ncd4 {[%clk 0:01:02]} 28. Re1 {[%clk 0:02:10]}  g5 {[%clk 0:00:51]} 29. Nd5 {[%clk 0:01:52]}  gxf4 {[%clk 0:00:40]} 30. Nxf4 {[%clk 0:01:52]}  Rg8 {[%clk 0:00:31]} 31. Nxe6 {[%clk 0:01:46]}  Nxe6 {[%clk 0:00:29]} 32. Rxf6 {[%clk 0:01:46]}  Rxg2+ {[%clk 0:00:18]} 33. Kxg2 {[%clk 0:01:46]}  Rg8+ {[%clk 0:00:19]} 34. Kf2 {[%clk 0:01:47]}  Nd4 {[%clk 0:00:07]} 35. Qe3 {[%clk 0:01:40]}  Qc2+ {[%clk 0:00:07]} 36. Re2 {[%clk 0:01:41]}  Nxe2 {[%clk 0:00:05]} 37. Qb3 {[%clk 0:01:23]}  Qxb3 {[%clk 0:00:04]} 38. axb3 {[%clk 0:01:22]}  Nd4 {[%clk 0:00:04]} 39. e5 {[%clk 0:01:21]}  Nxb3 {[%clk 0:00:05]} 40. Ke3 {[%clk 0:01:20]}  Re8 {[%clk 0:00:06]} 41. Ke4 {[%clk 0:01:19]}  c4 {[%clk 0:00:06]} 42. Rc6 {[%clk 0:01:19]}  c3 {[%clk 0:00:06]} 43. bxc3 {[%clk 0:01:19]}  bxc3 {[%clk 0:00:06]} 44. Rxc3 {[%clk 0:01:20]}  Nd2+ {[%clk 0:00:07]} 45. Kd5 {[%clk 0:01:19]}  Nf1 {[%clk 0:00:06]} 46. e6 {[%clk 0:01:18]}  Nh2 {[%clk 0:00:07]} 47. Kd6 {[%clk 0:01:18]}  Ng4 {[%clk 0:00:06]} 48. Kd7 {[%clk 0:01:19]}  Rg8 {[%clk 0:00:06]} 49. e7 {[%clk 0:01:18]}  Nf6+ {[%clk 0:00:06]} 50. Ke6 {[%clk 0:01:18]}  Ne8 {[%clk 0:00:07]} 51. Rc8 {[%clk 0:01:18]}  a5 {[%clk 0:00:03]} 52. Rd8 {[%clk 0:01:15]}  Rg6+ {[%clk 0:00:04]} 53. Kf7 {[%clk 0:01:15]}  Rg8 {[%clk 0:00:04]} 54. Rxe8 {[%clk 0:01:15]}  Rxe8 {[%clk 0:00:03]} 55. Kxe8 {[%clk 0:01:15]}  a4 {[%clk 0:00:03]} 56. Kf7 {[%clk 0:01:16]}  a3 {[%clk 0:00:04]} 57. e8=Q# {[%clk 0:01:17]} 1-0


[Site "https://www.chess.com"]

[Event "Titled Tuesday Blitz December 20 Early 2022"]
[White "Korchmar_Vasiliy"]
[Black "Mitrabha, Guha"]
[BlackFideId "5057000"]
[WhiteElo "2703"]
[BlackElo "2507"]
[Result "0-1"]
[Round "03"]
[TimeControl "180+2"]
[Date "2022.12.20"]
[WhiteClock "0:00:09"]
[BlackClock "0:01:24"]

1. e4 {[%clk 0:03:00]}  c6 {[%clk 0:02:57]} 2. d4 {[%clk 0:03:00]}  d5 {[%clk 0:02:58]} 3. e5 {[%clk 0:03:01]}  Bf5 {[%clk 0:02:57]} 4. c4 {[%clk 0:03:01]}  e6 {[%clk 0:02:57]} 5. Nc3 {[%clk 0:03:02]}  Bb4 {[%clk 0:02:57]} 6. cxd5 {[%clk 0:02:58]}  cxd5 {[%clk 0:02:53]} 7. h4 {[%clk 0:02:54]}  h6 {[%clk 0:02:49]} 8. g4 {[%clk 0:02:52]}  Bh7 {[%clk 0:02:45]} 9. Bd3 {[%clk 0:02:52]}  Bxd3 {[%clk 0:02:44]} 10. Qxd3 {[%clk 0:02:53]}  Nc6 {[%clk 0:02:45]} 11. Ne2 {[%clk 0:02:52]}  Nge7 {[%clk 0:02:45]} 12. h5 {[%clk 0:02:52]}  Rc8 {[%clk 0:02:45]} 13. O-O {[%clk 0:02:50]}  Qb6 {[%clk 0:02:42]} 14. Be3 {[%clk 0:02:48]}  Bxc3 {[%clk 0:02:37]} 15. Nxc3 {[%clk 0:02:43]}  O-O {[%clk 0:02:28]} 16. Nb5 {[%clk 0:02:25]}  Nb4 {[%clk 0:02:22]} 17. Qb3 {[%clk 0:02:11]}  Qxb5 {[%clk 0:02:18]} 18. a3 {[%clk 0:02:11]}  Rc4 {[%clk 0:02:17]} 19. axb4 {[%clk 0:02:01]}  Rxb4 {[%clk 0:02:15]} 20. Qa3 {[%clk 0:02:01]}  Nc6 {[%clk 0:02:14]} 21. Rfc1 {[%clk 0:01:36]}  Nxd4 {[%clk 0:02:07]} 22. Rc7 {[%clk 0:01:19]}  Nb3 {[%clk 0:01:43]} 23. Rd1 {[%clk 0:01:05]}  Rxg4+ {[%clk 0:01:41]} 24. Kh2 {[%clk 0:01:02]}  d4 {[%clk 0:01:39]} 25. Kh3 {[%clk 0:00:45]}  Qe2 {[%clk 0:01:30]} 26. Kh2 {[%clk 0:00:09]}  Qxd1 {[%clk 0:01:24]} 0-1


[Site "https://www.chess.com"]

[Event "Titled Tuesday Blitz December 20 Early 2022"]
[White "Manish Anto Cristiano F"]
[Black "Kucherov, Konstantin"]
[WhiteFideId "25095927"]
[BlackFideId "34136280"]
[WhiteElo "2485"]
[BlackElo "1983"]
[Result "1/2-1/2"]
[Round "03"]
[TimeControl "180+2"]
[Date "2022.12.20"]
[WhiteClock "0:01:13"]
[BlackClock "0:00:10"]

1. d4 {[%clk 0:02:58]}  Nf6 {[%clk 0:02:59]} 2. c4 {[%clk 0:02:58]}  d6 {[%clk 0:02:58]} 3. Nc3 {[%clk 0:02:58]}  c6 {[%clk 0:02:59]} 4. e4 {[%clk 0:02:58]}  Nbd7 {[%clk 0:02:59]} 5. Nf3 {[%clk 0:02:59]}  e5 {[%clk 0:03:00]} 6. Be2 {[%clk 0:03:00]}  Be7 {[%clk 0:02:59]} 7. h3 {[%clk 0:03:00]}  a6 {[%clk 0:02:58]} 8. Be3 {[%clk 0:02:59]}  b5 {[%clk 0:02:58]} 9. a3 {[%clk 0:03:00]}  O-O {[%clk 0:02:55]} 10. O-O {[%clk 0:02:59]}  Bb7 {[%clk 0:02:54]} 11. Rc1 {[%clk 0:03:00]}  Rc8 {[%clk 0:02:52]} 12. b4 {[%clk 0:03:00]}  bxc4 {[%clk 0:02:51]} 13. dxe5 {[%clk 0:02:58]}  dxe5 {[%clk 0:02:45]} 14. Bxc4 {[%clk 0:02:57]}  Qc7 {[%clk 0:02:45]} 15. Qe2 {[%clk 0:02:57]}  Ra8 {[%clk 0:02:40]} 16. Nd2 {[%clk 0:02:50]}  Nb6 {[%clk 0:02:37]} 17. Bb3 {[%clk 0:02:47]}  a5 {[%clk 0:02:27]} 18. b5 {[%clk 0:02:45]}  c5 {[%clk 0:02:22]} 19. f3 {[%clk 0:02:28]}  a4 {[%clk 0:02:18]} 20. Ba2 {[%clk 0:02:28]}  Rfd8 {[%clk 0:02:10]} 21. Rfd1 {[%clk 0:02:27]}  Nh5 {[%clk 0:02:08]} 22. Nc4 {[%clk 0:02:26]}  Nf4 {[%clk 0:02:04]} 23. Qf2 {[%clk 0:02:25]}  Nd3 {[%clk 0:01:57]} 24. Rxd3 {[%clk 0:02:25]}  Rxd3 {[%clk 0:01:56]} 25. Nxb6 {[%clk 0:02:25]}  Qxb6 {[%clk 0:01:55]} 26. Nd5 {[%clk 0:02:24]}  Bxd5 {[%clk 0:01:47]} 27. Bxd5 {[%clk 0:02:23]}  Rc8 {[%clk 0:01:40]} 28. Bc6 {[%clk 0:02:23]}  Rxa3 {[%clk 0:01:34]} 29. Bxc5 {[%clk 0:02:17]}  Bxc5 {[%clk 0:01:33]} 30. Qxc5 {[%clk 0:02:17]}  Qxc5+ {[%clk 0:01:31]} 31. Rxc5 {[%clk 0:02:18]}  Rb3 {[%clk 0:01:28]} 32. Rxe5 {[%clk 0:02:08]}  g6 {[%clk 0:01:20]} 33. Re7 {[%clk 0:02:07]}  Rd8 {[%clk 0:00:58]} 34. Ra7 {[%clk 0:01:55]}  a3 {[%clk 0:00:58]} 35. Kh2 {[%clk 0:01:49]}  Rd2 {[%clk 0:00:52]} 36. Kg3 {[%clk 0:01:48]}  a2 {[%clk 0:00:49]} 37. Bd5 {[%clk 0:01:45]}  Rbb2 {[%clk 0:00:48]} 38. Bxf7+ {[%clk 0:01:45]}  Kf8 {[%clk 0:00:47]} 39. Kf4 {[%clk 0:01:43]}  Rxg2 {[%clk 0:00:40]} 40. Ke5 {[%clk 0:01:34]}  Rxb5+ {[%clk 0:00:38]} 41. Kf6 {[%clk 0:01:32]}  Rb6+ {[%clk 0:00:36]} 42. Be6 {[%clk 0:01:32]}  Rxe6+ {[%clk 0:00:34]} 43. Kxe6 {[%clk 0:01:31]}  Rf2 {[%clk 0:00:32]} 44. e5 {[%clk 0:01:31]}  Rxf3 {[%clk 0:00:30]} 45. Rxa2 {[%clk 0:01:30]}  Rxh3 {[%clk 0:00:29]} 46. Kf6 {[%clk 0:01:31]}  Rf3+ {[%clk 0:00:28]} 47. Ke6 {[%clk 0:01:31]}  Kg7 {[%clk 0:00:27]} 48. Kd7 {[%clk 0:01:27]}  Rd3+ {[%clk 0:00:25]} 49. Ke7 {[%clk 0:01:27]}  g5 {[%clk 0:00:25]} 50. e6 {[%clk 0:01:28]}  h5 {[%clk 0:00:24]} 51. Rf2 {[%clk 0:01:27]}  g4 {[%clk 0:00:22]} 52. Rf7+ {[%clk 0:01:27]}  Kg6 {[%clk 0:00:22]} 53. Kf8 {[%clk 0:01:27]}  Rd8+ {[%clk 0:00:19]} 54. Ke7 {[%clk 0:01:27]}  Ra8 {[%clk 0:00:18]} 55. Rf8 {[%clk 0:01:23]}  Ra7+ {[%clk 0:00:17]} 56. Kd6 {[%clk 0:01:23]}  Ra6+ {[%clk 0:00:16]} 57. Ke5 {[%clk 0:01:23]}  Ra5+ {[%clk 0:00:16]} 58. Kf4 {[%clk 0:01:24]}  Ra7 {[%clk 0:00:15]} 59. Ke5 {[%clk 0:01:23]}  Kg5 {[%clk 0:00:13]} 60. Rg8+ {[%clk 0:01:22]}  Kh4 {[%clk 0:00:13]} 61. Kf6 {[%clk 0:01:22]}  Kh3 {[%clk 0:00:13]} 62. e7 {[%clk 0:01:22]}  Rxe7 {[%clk 0:00:12]} 63. Kxe7 {[%clk 0:01:22]}  h4 {[%clk 0:00:12]} 64. Kf6 {[%clk 0:01:23]}  g3 {[%clk 0:00:12]} 65. Kg5 {[%clk 0:01:23]}  g2 {[%clk 0:00:11]} 66. Kf4 {[%clk 0:01:20]}  Kh2 {[%clk 0:00:10]} 67. Kf3 {[%clk 0:01:15]}  g1=Q {[%clk 0:00:10]} 68. Rxg1 {[%clk 0:01:13]}  Kxg1 {[%clk 0:00:10]} 69. Kg4 {[%clk 0:01:13]}  Kg2 {[%clk 0:00:10]} 70. Kxh4 {[%clk 0:01:13]} 1/2-1/2


[Site "https://www.chess.com"]

[Event "Titled Tuesday Blitz December 20 Early 2022"]
[White "Manukyan_Artak"]
[Black "Baskaran, Darza"]
[BlackFideId "29951232"]
[WhiteElo "2560"]
[BlackElo "2318"]
[Result "1-0"]
[Round "03"]
[TimeControl "180+2"]
[Date "2022.12.20"]
[WhiteClock "0:00:27"]
[BlackClock "0:00:14"]

1. e4 {[%clk 0:03:00]}  c5 {[%clk 0:02:57]} 2. Nf3 {[%clk 0:03:00]}  Nc6 {[%clk 0:02:57]} 3. c3 {[%clk 0:03:00]}  d5 {[%clk 0:02:53]} 4. exd5 {[%clk 0:03:00]}  Qxd5 {[%clk 0:02:54]} 5. d4 {[%clk 0:03:01]}  Bg4 {[%clk 0:02:51]} 6. Be2 {[%clk 0:03:00]}  cxd4 {[%clk 0:02:47]} 7. cxd4 {[%clk 0:03:00]}  e6 {[%clk 0:02:45]} 8. h3 {[%clk 0:03:00]}  Bh5 {[%clk 0:02:39]} 9. Nc3 {[%clk 0:02:59]}  Bb4 {[%clk 0:02:38]} 10. O-O {[%clk 0:02:59]}  Bxc3 {[%clk 0:02:37]} 11. bxc3 {[%clk 0:03:00]}  Nge7 {[%clk 0:02:34]} 12. Rb1 {[%clk 0:03:00]}  Qd7 {[%clk 0:02:28]} 13. g4 {[%clk 0:02:49]}  Bg6 {[%clk 0:02:27]} 14. Bb5 {[%clk 0:02:49]}  a6 {[%clk 0:02:22]} 15. Ne5 {[%clk 0:02:49]}  Qc7 {[%clk 0:02:22]} 16. Ba4 {[%clk 0:02:40]}  b5 {[%clk 0:02:20]} 17. Nxc6 {[%clk 0:02:37]}  Bxb1 {[%clk 0:02:07]} 18. Nxe7 {[%clk 0:02:33]}  Qxe7 {[%clk 0:01:56]} 19. Bb3 {[%clk 0:02:27]}  Bg6 {[%clk 0:01:44]} 20. f4 {[%clk 0:02:25]}  Be4 {[%clk 0:01:37]} 21. Re1 {[%clk 0:02:20]}  f5 {[%clk 0:01:34]} 22. gxf5 {[%clk 0:01:24]}  exf5 {[%clk 0:01:30]} 23. Bd5 {[%clk 0:01:19]}  Rd8 {[%clk 0:01:22]} 24. Bc6+ {[%clk 0:01:06]}  Kf7 {[%clk 0:01:19]} 25. Bxe4 {[%clk 0:01:02]}  fxe4 {[%clk 0:01:19]} 26. f5 {[%clk 0:00:57]}  h6 {[%clk 0:00:58]} 27. Qb3+ {[%clk 0:00:51]}  Kf6 {[%clk 0:00:50]} 28. Bf4 {[%clk 0:00:51]}  Kxf5 {[%clk 0:00:39]} 29. Be5 {[%clk 0:00:45]}  Kg6 {[%clk 0:00:27]} 30. Qc2 {[%clk 0:00:41]}  Qh4 {[%clk 0:00:20]} 31. Rxe4 {[%clk 0:00:37]}  Qxh3 {[%clk 0:00:16]} 32. Re3+ {[%clk 0:00:27]}  Qf5 {[%clk 0:00:15]} 33. Rg3+ {[%clk 0:00:28]}  Kf7 {[%clk 0:00:14]} 34. Qxf5+ {[%clk 0:00:27]} 1-0


[Site "https://www.chess.com"]

[Event "Titled Tuesday Blitz December 20 Early 2022"]
[White "Marenco Fernandez, Oscar"]
[Black "Bilandani, Vansh"]
[WhiteFideId "6503080"]
[BlackFideId "8511292"]
[WhiteElo "1885"]
[BlackElo "2488"]
[Result "1/2-1/2"]
[Round "03"]
[TimeControl "180+2"]
[Date "2022.12.20"]
[WhiteClock "0:00:15"]
[BlackClock "0:00:20"]

1. e4 {[%clk 0:03:00]}  c6 {[%clk 0:02:59]} 2. d4 {[%clk 0:03:00]}  d5 {[%clk 0:02:59]} 3. exd5 {[%clk 0:03:01]}  cxd5 {[%clk 0:02:59]} 4. c4 {[%clk 0:03:02]}  Nf6 {[%clk 0:02:59]} 5. Nc3 {[%clk 0:03:02]}  Nc6 {[%clk 0:02:59]} 6. Bg5 {[%clk 0:03:03]}  e6 {[%clk 0:02:50]} 7. Nf3 {[%clk 0:03:03]}  Be7 {[%clk 0:02:48]} 8. c5 {[%clk 0:03:02]}  Ne4 {[%clk 0:02:36]} 9. Bxe7 {[%clk 0:03:01]}  Qxe7 {[%clk 0:02:37]} 10. Bb5 {[%clk 0:03:02]}  Bd7 {[%clk 0:02:35]} 11. O-O {[%clk 0:03:01]}  O-O {[%clk 0:02:30]} 12. Re1 {[%clk 0:03:00]}  Nxc3 {[%clk 0:01:58]} 13. bxc3 {[%clk 0:03:01]}  b6 {[%clk 0:01:58]} 14. c4 {[%clk 0:03:00]}  Na5 {[%clk 0:01:33]} 15. Bxd7 {[%clk 0:02:46]}  Qxd7 {[%clk 0:01:34]} 16. Ne5 {[%clk 0:02:45]}  Qb7 {[%clk 0:01:22]} 17. cxd5 {[%clk 0:01:59]}  Qxd5 {[%clk 0:01:19]} 18. Qa4 {[%clk 0:01:59]}  Rfd8 {[%clk 0:01:03]} 19. Rad1 {[%clk 0:01:56]}  Rac8 {[%clk 0:01:01]} 20. h4 {[%clk 0:01:52]}  h6 {[%clk 0:00:49]} 21. h5 {[%clk 0:01:30]}  Nc6 {[%clk 0:00:43]} 22. Nxc6 {[%clk 0:01:01]}  Rxc6 {[%clk 0:00:44]} 23. Re5 {[%clk 0:00:57]}  Qd7 {[%clk 0:00:34]} 24. cxb6 {[%clk 0:00:35]}  Rxb6 {[%clk 0:00:30]} 25. Qc2 {[%clk 0:00:26]}  Rd6 {[%clk 0:00:29]} 26. Re4 {[%clk 0:00:24]}  Rd5 {[%clk 0:00:29]} 27. Qe2 {[%clk 0:00:23]}  Qb5 {[%clk 0:00:27]} 28. Qxb5 {[%clk 0:00:17]}  Rxb5 {[%clk 0:00:28]} 29. Rd2 {[%clk 0:00:17]}  Rxh5 {[%clk 0:00:27]} 30. f3 {[%clk 0:00:18]}  Ra5 {[%clk 0:00:25]} 31. Kf2 {[%clk 0:00:18]}  Rd7 {[%clk 0:00:25]} 32. Re3 {[%clk 0:00:17]}  Ra4 {[%clk 0:00:24]} 33. Red3 {[%clk 0:00:17]}  g6 {[%clk 0:00:23]} 34. Ke3 {[%clk 0:00:17]}  Kg7 {[%clk 0:00:23]} 35. Rb3 {[%clk 0:00:17]}  h5 {[%clk 0:00:20]} 36. Rb5 {[%clk 0:00:16]}  Kf6 {[%clk 0:00:19]} 37. Rc5 {[%clk 0:00:15]}  Ra3+ {[%clk 0:00:19]} 38. Ke4 {[%clk 0:00:14]}  Ra4 {[%clk 0:00:20]} 39. Ke3 {[%clk 0:00:14]}  Ra3+ {[%clk 0:00:20]} 40. Ke4 {[%clk 0:00:14]}  Ra4 {[%clk 0:00:20]} 41. Ke3 {[%clk 0:00:15]} 1/2-1/2


[Site "https://www.chess.com"]